bitfinex/quotes_ETHUSD_20260209
["timestamp","ask_amount","ask_price","bid_price","bid_amount"]
[1770677671284,8.53155729,2113.2,2112.9,0.001]
[1770677672117,8.53155729,2113.2,2113.1,0.001]
[1770677672282,8.53155729,2113.2,2112.9,0.001]
[1770677672612,0.002,2113.0,2112.9,0.001]
[1770677673705,8.53155729,2113.2,2112.9,0.001]
[1770677673913,0.002,2113.1,2112.9,0.001]
[1770677675912,0.002,2113.2,2112.9,0.001]
[1770677676114,0.004,2113.2,2112.9,0.001]
[1770677676287,0.002,2113.1,2112.9,0.001]
[1770677676483,8.53155729,2113.2,2112.9,0.001]
[1770677677294,0.004,2113.2,2112.9,0.001]
[1770677677489,8.53155729,2113.1,2112.9,0.001]
[1770677678317,0.002,2113.1,2112.9,0.001]
[1770677680097,8.53155729,2113.1,2112.9,0.001]
[1770677681695,0.002,2113.1,2112.9,0.001]
[1770677682209,8.53155729,2113.1,2112.9,5.527e-05]
[1770677682405,8.53155729,2113.1,2112.6,1.18437593]
[1770677682613,9.71465407,2113.1,2112.6,0.001]
[1770677685723,0.002,2112.9,2112.6,0.001]
[1770677686704,0.002,2112.9,2112.6,8.97122911]
[1770677687101,0.002,2112.9,2112.6,0.001]
[1770677687933,0.004,2112.9,2112.6,0.001]
[1770677690694,9.21345209,2112.9,2112.6,0.001]
[1770677693308,0.004,2112.9,2112.6,0.001]
[1770677694307,9.21345209,2112.9,2112.6,0.001]
[1770677694514,0.004,2112.9,2112.6,0.001]
[1770677695403,9.21145209,2112.8,2112.6,0.001]
[1770677699019,0.002,2112.7,2112.6,0.001]
[1770677699637,0.004,2112.7,2112.6,0.001]
[1770677700022,9.20945209,2112.8,2112.6,0.001]
[1770677700222,0.002,2112.9,2112.6,0.001]
[1770677701037,0.002,2113.1,2112.6,8.48166805]
[1770677701340,0.002,2113.0,2112.6,0.001]
[1770677701516,0.002,2113.4,2112.7,8.48066805]
[1770677701713,0.006,2113.3,2112.6,8.07328522]
[1770677701919,0.006,2113.3,2112.7,8.48066805]
[1770677702241,0.002,2113.4,2112.9,8.48066805]
[1770677702538,0.002,2113.4,2113.1,8.48066805]
[1770677703124,0.008,2113.4,2113.0,9.66381996]
[1770677703325,0.006,2113.3,2113.0,1.18315191]
[1770677704749,0.006,2113.3,2112.9,1.18320791]
[1770677704926,9.21545209,2113.2,2112.8,0.7]
[1770677705131,9.20945209,2113.2,2112.8,0.7]
[1770677705324,9.21545209,2113.1,2112.6,0.001]
[1770677705520,9.20945209,2113.1,2112.6,0.001]
[1770677705726,9.21545209,2113.0,2112.6,0.001]
[1770677706043,9.20945209,2113.0,2112.6,0.001]
[1770677709834,0.006,2112.9,2112.6,0.001]
[1770677710562,10.39442183,2113.4,2112.7,8.48066805]
[1770677711433,10.39442183,2113.4,2112.7,9.66393917]
[1770677712257,10.39442183,2113.4,2112.8,0.001]
[1770677712461,0.002,2113.0,2112.8,0.001]
[1770677713062,0.002,2113.4,2113.0,8.48066805]
[1770677713566,0.002,2113.6,2113.2,8.48066805]
[1770677715443,0.002,2113.6,2113.3,9.663652]
[1770677717170,0.002,2113.8,2113.5,17.25295327]
[1770677717360,0.002,2114.1,2113.8,1.18270413]
[1770677717558,0.002,2114.1,2113.8,9.66337218]
[1770677717858,0.002,2114.2,2113.9,16.55295327]
[1770677718578,0.002,2114.4,2113.9,16.55295327]
[1770677719364,0.002,2114.4,2114.0,1.18259224]
[1770677719761,0.002,2114.4,2114.0,9.76647066]
[1770677721670,0.002,2114.6,2114.2,9.1244517]
[1770677722369,0.002,2114.6,2114.1,8.07228522]
[1770677722548,0.002,2114.6,2114.0,10.30704394]
[1770677723591,0.002,2115.0,2114.3,10.30687614]
[1770677724870,0.002,2115.0,2114.4,9.1244517]
[1770677725067,0.002,2115.0,2114.6,9.1244517]
[1770677725674,0.002,2114.8,2114.7,1.18220078]
[1770677726062,0.002,2115.0,2114.7,1.18220078]
[1770677727057,0.002,2115.0,2114.7,9.254486]
[1770677727477,0.002,2115.0,2114.7,18.3789377]
[1770677728375,0.002,2115.3,2115.0,9.1244517]
[1770677728601,0.002,2115.6,2115.1,17.19673692]
[1770677728880,0.002,2115.6,2115.2,9.1244517]
[1770677729453,0.002,2115.6,2115.1,9.1244517]
[1770677730156,0.002,2115.6,2115.2,10.30637303]
[1770677735655,0.002,2115.6,2115.2,1.18192133]
[1770677735858,9.25857521,2115.6,2115.2,1.18192133]
[1770677737385,9.25857521,2115.6,2114.9,9.1244517]
[1770677737581,0.002,2115.4,2114.9,9.1244517]
[1770677739383,0.002,2115.4,2115.0,1.18203309]
[1770677741378,9.25857521,2115.4,2114.8,1.18214488]
[1770677743471,9.25857521,2115.4,2114.6,13.85303123]
[1770677743889,9.25857521,2115.4,2114.9,0.7]
[1770677744683,10.44040327,2115.4,2114.9,0.7]
[1770677746277,10.44040327,2115.4,2114.9,1.88208807]
[1770677746478,10.44040327,2115.4,2114.9,0.7]
[1770677749593,10.44040327,2115.4,2115.1,0.001]
[1770677750698,10.44040327,2115.4,2114.9,0.001]
[1770677752568,9.22894925,2115.2,2114.3,1.18242444]
[1770677752768,9.22894925,2115.0,2114.3,1.18242444]
[1770677753498,9.22894925,2115.0,2114.2,1.18343705]
[1770677754072,9.22894925,2115.0,2114.4,0.7]
[1770677755497,9.22894925,2114.8,2114.4,0.7]
[1770677756175,9.22894925,2114.8,2114.2,1.18346036]
[1770677757670,10.41112011,2114.8,2114.2,0.001]
[1770677761388,10.41112011,2114.8,2114.4,0.001]
[1770677762478,9.22894925,2114.6,2114.1,0.001]
[1770677762702,9.22894925,2114.4,2113.6,1.18278881]
[1770677762898,9.22894925,2114.4,2113.5,1.18284306]
[1770677763395,9.22894925,2114.4,2113.7,0.7]
[1770677764576,4.48642444,2114.3,2113.7,1.88275478]
[1770677764781,3.304,2114.3,2113.7,11.46667769]
[1770677766984,9.22894925,2114.4,2113.7,11.46667769]
[1770677767190,9.22894925,2114.4,2113.7,10.76667769]
[1770677768224,10.41129873,2114.5,2113.7,10.76667769]
[1770677770228,10.41129873,2114.5,2113.7,1.18275478]
[1770677770521,10.41129873,2114.5,2113.7,10.76667769]
[1770677774003,10.41129873,2114.5,2113.9,0.001]
[1770677774205,0.002,2114.3,2113.9,0.001]
[1770677775398,0.002,2114.3,2113.9,9.58492291]
[1770677775734,0.002,2114.3,2113.9,0.001]
[1770677777233,0.002,2114.3,2113.9,1.18364818]
[1770677778330,9.23094925,2114.3,2113.9,1.18364818]
[1770677779321,9.23094925,2114.3,2113.9,0.001]
[1770677785616,0.002,2114.3,2113.9,9.55374759]
[1770677786422,0.002,2114.3,2114.1,0.001]
[1770677795033,4.47803545,2114.9,2114.2,9.55274759]
[1770677795332,10.36694945,2114.9,2114.2,9.55274759]
[1770677799409,10.36694945,2114.9,2114.3,1.18242444]
[1770677800508,9.18486003,2114.7,2114.1,0.001]
[1770677800712,9.18486003,2114.5,2114.1,0.001]
[1770677800934,9.18486003,2114.4,2114.1,0.001]
[1770677801512,10.36723711,2114.4,2114.1,0.001]
[1770677801717,9.18486003,2114.4,2114.1,0.001]
[1770677802829,10.36724681,2114.4,2114.1,0.001]
[1770677803034,10.36724681,2114.4,2114.1,5.519e-05]
[1770677805609,10.36724681,2114.4,2113.9,0.001]
[1770677806333,9.18486003,2114.3,2113.9,0.001]
[1770677808827,9.18486003,2114.1,2113.9,0.001]
[1770677809033,9.18486003,2114.0,2113.9,0.001]
[1770677809219,9.18486003,2114.0,2113.6,0.001]
[1770677810840,1.18264818,2113.9,2113.8,0.001]
[1770677812839,10.56608115,2113.9,2113.8,0.001]
[1770677813223,10.56608115,2113.9,2113.5,0.001]
[1770677823152,1.18264818,2113.9,2113.5,9.6934373]
[1770677823861,17.41866999,2114.1,2113.5,9.6934373]
[1770677823862,1.18263087,2114.0,2113.5,9.6934373]
[1770677824763,1.18263087,2114.0,2113.7,0.001]
[1770677825051,0.002,2113.8,2113.7,0.001]
[1770677829134,0.002,2113.8,2113.7,5.41e-05]
[1770677829135,1.18470413,2113.8,2113.7,5.41e-05]
[1770677832267,1.18470413,2113.8,2113.5,0.001]
[1770677834366,0.002,2113.8,2113.5,0.001]
[1770677836979,0.002,2113.8,2113.7,0.001]
[1770677838160,0.002,2113.8,2113.7,5.417e-05]
[1770677839167,1.18470413,2113.8,2113.5,0.001]
[1770677843163,0.002,2113.8,2113.5,0.001]
[1770677848683,0.002,2113.8,2113.7,0.001]
[1770677848859,0.002,2113.6,2113.5,0.001]
[1770677849170,0.002,2113.6,2113.5,5.424e-05]
[1770677853073,0.002,2114.7,2113.8,9.86104188]
[1770677853276,0.002,2114.7,2114.3,9.86104188]
[1770677857361,0.002,2114.7,2114.3,11.04341341]
[1770677860475,0.002,2114.7,2114.1,9.86104188]
[1770677860674,9.79969149,2114.7,2113.8,9.86104188]
[1770677860875,9.79969149,2114.7,2114.2,0.001]
[1770677861054,9.79969149,2114.5,2114.2,0.001]
[1770677861380,0.002,2114.5,2114.2,0.001]
[1770677862877,9.79769149,2114.3,2113.5,5.424e-05]
[1770677863080,9.79769149,2114.1,2113.5,5.424e-05]
[1770677863580,1.18270413,2113.8,2113.5,5.424e-05]
[1770677869568,11.43477053,2113.8,2113.5,5.424e-05]
[1770677871572,11.43477053,2113.8,2113.3,0.001]
[1770677872990,11.43477053,2113.8,2113.7,0.001]
[1770677873284,11.43477053,2113.8,2113.5,0.001]
[1770677876080,10.2520664,2113.7,2113.5,0.001]
[1770677877190,1.18281604,2113.6,2113.3,0.001]
[1770677879863,3.305,2113.5,2113.3,0.001]
[1770677881765,17.7648099,2113.8,2113.3,0.001]
[1770677882086,11.4348099,2113.8,2113.3,0.001]
[1770677883791,1.1827435,2113.8,2113.3,10.40822603]
[1770677884091,11.43465864,2114.0,2113.3,10.40822603]
[1770677884892,11.43465864,2114.0,2113.5,0.001]
[1770677885393,0.002,2113.6,2113.5,0.001]
[1770677887804,0.002,2113.8,2113.5,10.40822603]
[1770677889082,0.002,2113.8,2113.6,1.18281604]
[1770677891293,0.002,2113.8,2113.5,0.001]
[1770677892268,0.002,2113.8,2113.5,10.40822603]
[1770677893273,0.002,2113.8,2113.6,1.18281604]
[1770677893681,0.002,2113.8,2113.6,11.59004207]
[1770677894988,0.002,2113.8,2113.7,13.71222603]
[1770677895393,11.43444148,2114.4,2113.7,14.89498611]
[1770677897777,11.43444148,2114.4,2113.7,14.89598611]
[1770677898181,0.002,2114.2,2113.7,14.89598611]
[1770677901395,0.002,2114.2,2113.7,4.48876008]
[1770677901596,11.03719601,2114.1,2113.7,0.001]
[1770677903022,12.21973837,2114.1,2113.5,0.001]
[1770677904317,1.18264818,2113.9,2113.5,0.001]
[1770677904695,12.21984419,2113.9,2113.5,0.001]
[1770677908922,1.01100134,2113.8,2113.5,0.001]
[1770677909092,12.21984419,2113.9,2113.5,0.001]
[1770677910724,12.21984419,2113.9,2113.7,0.001]
[1770677911520,12.21984419,2113.9,2113.7,6.189e-05]
[1770677911720,11.03719601,2113.9,2113.7,6.189e-05]
[1770677912812,12.21984789,2113.9,2113.7,6.189e-05]
[1770677913017,1.18463139,2114.0,2113.7,6.189e-05]
[1770677913330,1.01103423,2113.9,2113.7,6.189e-05]
[1770677913504,12.2218274,2114.0,2113.7,6.189e-05]
[1770677913831,1.01112587,2113.9,2113.7,6.189e-05]
[1770677914007,12.2218274,2114.0,2113.7,6.189e-05]
[1770677914209,1.01121347,2113.9,2113.7,6.189e-05]
[1770677914510,1.01164456,2113.8,2113.7,6.189e-05]
[1770677914910,0.002,2114.0,2113.7,6.189e-05]
[1770677915103,1.01177533,2113.9,2113.7,6.189e-05]
[1770677915304,0.002,2114.0,2113.7,6.189e-05]
[1770677915504,1.0119121,2113.9,2113.7,6.189e-05]
[1770677915714,0.002,2114.0,2113.7,6.189e-05]
[1770677915914,1.01191687,2113.9,2113.7,6.189e-05]
[1770677916127,11.03719601,2113.7,2113.5,0.001]
[1770677916343,1.01192745,2113.6,2113.5,0.001]
[1770677916795,1.01190365,2113.6,2113.5,0.001]
[1770677917437,12.21989491,2113.9,2113.5,0.001]
[1770677917596,1.01194767,2113.8,2113.5,0.001]
[1770677917791,1.01194767,2113.7,2113.5,0.001]
[1770677918024,12.21989491,2113.9,2113.5,0.001]
[1770677918216,1.01195381,2113.8,2113.5,0.001]
[1770677918534,1.01195381,2113.7,2113.5,0.001]
[1770677918752,12.21989491,2113.9,2113.5,0.001]
[1770677918920,1.01187431,2113.8,2113.5,0.001]
[1770677919119,1.01187431,2113.7,2113.5,0.001]
[1770677919322,12.21989491,2113.9,2113.5,0.001]
[1770677919523,1.01198131,2113.8,2113.5,0.001]
[1770677919717,1.01198131,2113.7,2113.5,0.001]
[1770677919923,12.21989491,2113.9,2113.5,0.001]
[1770677920124,1.01198203,2113.8,2113.5,0.001]
[1770677920335,1.01198203,2113.7,2113.5,0.001]
[1770677920499,12.21989491,2113.9,2113.5,0.001]
[1770677920699,1.01189793,2113.8,2113.5,0.001]
[1770677920899,1.01189793,2113.7,2113.5,0.001]
[1770677921199,12.21989491,2113.9,2113.5,0.001]
[1770677921498,1.01180607,2113.8,2113.5,0.001]
[1770677921710,1.01180607,2113.7,2113.5,0.001]
[1770677921903,12.21989491,2113.9,2113.5,0.001]
[1770677922123,12.04900034,2113.8,2113.5,0.001]
[1770677922307,1.01180433,2113.7,2113.5,0.001]
[1770677922512,11.03719601,2113.8,2113.5,0.001]
[1770677922715,1.01166471,2113.7,2113.5,0.001]
[1770677922925,11.03719601,2113.8,2113.5,0.001]
[1770677923227,1.01166999,2113.7,2113.5,0.001]
[1770677923531,11.03719601,2113.8,2113.5,0.001]
[1770677923740,1.01159871,2113.7,2113.5,0.001]
[1770677923908,1.01159871,2113.6,2113.5,0.001]
[1770677924111,1.01159871,2113.7,2113.5,0.001]
[1770677925041,1.01359871,2113.7,2113.5,0.001]
[1770677925209,1.01159871,2113.6,2113.5,0.001]
[1770677926708,0.002,2113.7,2113.5,10.51928335]
[1770677926910,0.002,2113.9,2113.6,10.51828335]
[1770677928629,0.002,2113.9,2113.6,11.70107139]
[1770677928942,0.002,2113.9,2113.5,4.4888404]
[1770677929812,0.002,2113.9,2113.5,3.306]
[1770677930135,11.2704116,2113.9,2113.5,3.306]
[1770677932243,12.45306289,2113.9,2113.5,3.306]
[1770677933136,0.002,2113.9,2113.5,3.306]
[1770677933722,0.002,2113.9,2113.6,11.48777308]
[1770677933923,0.002,2113.9,2113.5,4.4888698]
[1770677934122,0.002,2113.9,2113.5,15.97664288]
[1770677934329,0.002,2113.9,2113.6,11.48777308]
[1770677935314,0.002,2113.9,2113.7,1.18276008]
[1770677935514,0.002,2114.0,2113.8,11.48777308]
[1770677936338,0.002,2114.2,2113.8,11.48777308]
[1770677936528,0.002,2114.2,2113.9,11.48777308]
[1770677936929,0.002,2114.4,2114.0,11.48777308]
[1770677937120,0.002,2114.4,2114.1,11.48777308]
[1770677937321,0.002,2114.4,2114.2,12.67025345]
[1770677939624,0.002,2114.7,2114.3,14.79277308]
[1770677939824,0.002,2114.7,2114.4,11.48777308]
[1770677940224,11.2704116,2114.7,2114.3,3.305]
[1770677940651,11.2704116,2114.7,2114.4,11.48777308]
[1770677940652,0.002,2114.7,2114.4,11.48777308]
[1770677941033,0.002,2114.9,2114.4,11.48777308]
[1770677941851,0.002,2115.2,2114.9,11.48777308]
[1770677942059,0.002,2115.8,2115.1,11.48777308]
[1770677942246,0.002,2115.8,2115.2,19.55509209]
[1770677942749,0.002,2115.8,2115.3,11.48777308]
[1770677943045,0.002,2115.8,2115.4,3.305]
[1770677943951,0.002,2115.8,2114.3,11.48777308]
[1770677944156,8.06731901,2115.5,2114.4,3.304]
[1770677944446,1.00469237,2115.4,2114.5,0.7]
[1770677944640,1.00469237,2115.3,2114.5,0.7]
[1770677944827,8.06731901,2115.5,2114.5,0.7]
[1770677945021,1.00403627,2115.4,2114.4,4.48636029]
[1770677945226,8.06731901,2115.5,2114.4,4.48636029]
[1770677945426,1.00376884,2115.4,2114.4,4.48636029]
[1770677945625,8.06731901,2115.5,2114.4,4.48636029]
[1770677945922,1.00374754,2115.4,2114.4,4.48636029]
[1770677946258,1.18180958,2115.4,2114.4,4.48636029]
[1770677948147,4.72723834,2115.5,2114.4,4.48636029]
[1770677948452,12.27318388,2115.4,2114.4,4.48636029]
[1770677948630,11.2684116,2115.4,2114.4,4.48636029]
[1770677950449,11.2684116,2115.2,2114.4,4.48636029]
[1770677951542,11.2684116,2115.2,2113.6,11.62656795]
[1770677951543,11.2684116,2115.2,2114.0,1.18255075]
[1770677951753,11.2684116,2115.0,2113.7,0.001]
[1770677951940,11.2684116,2114.8,2113.7,0.001]
[1770677952142,11.2684116,2114.6,2113.7,0.001]
[1770677952338,11.2684116,2114.4,2113.7,0.001]
[1770677954262,12.45081697,2114.4,2113.7,0.001]
[1770677956873,11.2684116,2115.0,2113.7,12.67153316]
[1770677957093,11.2684116,2115.7,2114.5,11.48777308]
[1770677957364,3.37399571,2115.9,2114.4,0.05631688]
[1770677957365,0.002,2116.1,2115.0,11.48777308]
[1770677957742,0.002,2116.1,2115.2,11.48777308]
[1770677957939,0.002,2116.1,2115.4,11.48777308]
[1770677958956,0.002,2116.1,2115.5,12.6695268]
[1770677959163,0.002,2116.2,2115.6,11.48777308]
[1770677959659,0.002,2116.2,2115.6,11.54408996]
[1770677961159,0.002,2116.2,2115.8,11.79519623]
[1770677961366,0.002,2116.5,2116.0,11.79519623]
[1770677961367,1e-08,2116.5,2116.0,11.79519623]
[1770677963063,1e-08,2116.5,2115.9,3.304]
[1770677963271,12.50606653,2116.5,2115.6,1.18165691]
[1770677963982,12.50606653,2116.5,2115.5,3.303]
[1770677964283,12.50606652,2116.3,2114.8,16.2803321]
[1770677964574,12.50606652,2116.1,2115.0,0.7]
[1770677965076,12.50606652,2115.9,2115.0,0.7]
[1770677965277,13.68770852,2115.7,2114.8,3.303]
[1770677966869,13.68770852,2115.7,2114.6,0.001]
[1770677967074,12.50606652,2115.2,2114.4,1.18332175]
[1770677967307,1.18180958,2115.4,2114.4,0.001]
[1770677967590,1.18180958,2115.4,2114.4,3.304]
[1770677967963,1.18180958,2115.4,2114.4,15.09919623]
[1770677968568,12.50606652,2115.8,2114.5,11.79519623]
[1770677968868,12.50606652,2115.8,2114.5,11.85151311]
[1770677969260,1.181642,2115.7,2114.6,12.97745292]
[1770677969681,1.181642,2115.7,2114.8,0.7]
[1770677970293,1.18159134,2115.8,2114.8,12.49519623]
[1770677971684,4.72595745,2116.0,2114.9,1.18208898]
[1770677971901,4.72595745,2116.0,2114.9,12.97728521]
[1770677972081,1.18147448,2116.0,2114.9,12.97728521]
[1770677972257,1.18147448,2116.0,2115.0,11.79519623]
[1770677972457,13.68749961,2116.1,2115.1,3.303]
[1770677972657,1.1813919,2116.2,2115.2,11.79519623]
[1770677972884,0.002,2116.3,2115.2,11.85151311]
[1770677974070,1e-08,2116.5,2115.7,11.79519623]
[1770677974273,1e-08,2116.5,2115.9,11.79519623]
[1770677975188,1e-08,2116.5,2115.8,3.303]
[1770677976188,1e-08,2116.5,2115.9,1.18153031]
[1770677977283,0.002,2116.3,2115.9,1.18153031]
[1770677979017,0.002,2116.3,2115.8,0.001]
[1770677979018,12.50806652,2116.3,2115.8,0.001]
[1770677979315,12.50806652,2116.3,2115.5,0.001]
[1770677979480,12.50606652,2116.1,2114.9,3.302]
[1770677979679,12.50606652,2115.9,2115.0,0.001]
[1770677980082,1.18158616,2115.8,2115.0,0.001]
[1770677986181,4.72634464,2115.9,2115.0,0.001]
[1770677986499,1.18136282,2116.2,2115.0,11.79619623]
[1770677987110,1.00869996,2116.1,2115.0,11.79619623]
[1770677987290,1.18136282,2116.2,2115.0,11.79619623]
[1770677987607,1.18136282,2116.2,2115.0,11.79519623]
[1770677987991,1.18136282,2116.2,2115.2,11.79519623]
[1770677988304,1.18136282,2116.2,2115.3,1.18186545]
[1770677988607,1e-08,2116.5,2115.7,11.79519623]
[1770677988779,1e-08,2116.5,2115.9,11.79519623]
[1770677989587,13.68691255,2117.2,2116.1,12.6609072]
[1770677989782,0.002,2116.3,2116.1,12.6609072]
[1770677989982,13.68691255,2117.2,2116.1,12.6609072]
[1770677990394,13.68691255,2117.2,2116.2,1.18136282]
[1770677993420,12.29983894,2117.0,2116.1,1.18140868]
[1770677993722,1.00754505,2116.9,2116.0,1.18144209]
[1770677993890,12.29983894,2116.9,2116.1,1.18141182]
[1770677995022,1.18102796,2116.8,2115.9,4.72610976]
[1770677996824,13.48064377,2117.2,2116.1,1.18141864]
[1770677997000,12.29983894,2117.0,2116.1,1.18141864]
[1770677997204,1.00598033,2116.9,2116.1,1.18141864]
[1770677997389,12.29983894,2117.0,2116.1,1.18141864]
[1770677997594,1.00518899,2116.9,2116.1,1.18141864]
[1770677997795,12.29983894,2117.0,2116.1,1.18141864]
[1770677997994,1.00449649,2116.9,2116.1,1.18141864]
[1770677998303,12.29983894,2117.0,2116.1,1.18141864]
[1770677998497,1.00464668,2116.9,2116.1,1.18141864]
[1770677998797,12.29983894,2117.0,2116.1,1.18141864]
[1770677999135,1.18102796,2116.8,2116.1,1.18141864]
[1770677999614,13.4808669,2116.8,2116.1,1.18141864]
[1770678000408,13.30088779,2116.8,2115.8,3.302]
[1770678000606,12.29983894,2116.6,2115.5,1.18174785]
[1770678000926,13.48112979,2116.4,2115.5,4.72699734]
[1770678001231,13.48112979,2116.4,2115.6,0.7]
[1770678001436,13.48112979,2116.4,2115.5,1.18175372]
[1770678001812,13.48112979,2116.4,2116.3,0.001]
[1770678002030,1.18119536,2116.5,2115.5,13.84266092]
[1770678002323,13.30693266,2116.4,2115.2,1.18291821]
[1770678002500,12.29983894,2116.2,2115.2,0.001]
[1770678002702,12.29983894,2116.0,2115.2,0.001]
[1770678002930,1.18153031,2115.9,2115.2,0.001]
[1770678005300,4.72546846,2116.2,2115.2,0.001]
[1770678005499,13.3082341,2116.1,2115.2,0.001]
[1770678005731,12.29983894,2115.9,2115.2,0.001]
[1770678005919,2.91648066,2116.3,2115.2,0.001]
[1770678005920,13.30825696,2115.8,2115.2,0.001]
[1770678006129,12.29983894,2115.8,2115.2,0.001]
[1770678006609,12.29983894,2116.1,2115.2,0.001]
[1770678006798,13.30817113,2116.0,2115.2,0.001]
[1770678006999,1.00833219,2115.9,2115.2,0.001]
[1770678007216,12.29983894,2116.0,2115.2,0.001]
[1770678007524,1.18158616,2115.8,2115.2,0.001]
[1770678010713,1.18153031,2115.9,2115.2,0.001]
[1770678011223,1.18136282,2116.2,2115.2,12.6619072]
[1770678011529,1.00756436,2116.1,2115.2,12.6619072]
[1770678011828,12.29983894,2116.3,2115.2,12.6619072]
[1770678012127,1.18128932,2116.4,2115.2,12.6619072]
[1770678012300,1.18128932,2116.4,2115.3,12.6609072]
[1770678012504,1.1812245,2116.5,2115.3,12.6609072]
[1770678012704,1.1812245,2116.5,2115.5,12.6609072]
[1770678012705,1.00794315,2116.4,2115.5,12.6609072]
[1770678012931,1.1812245,2116.5,2115.6,15.9629072]
[1770678013116,1.00808613,2116.4,2115.6,15.9629072]
[1770678013317,1.1812245,2116.5,2115.6,15.9629072]
[1770678013633,4.72441954,2116.7,2115.6,15.9629072]
[1770678013634,1.18112404,2116.7,2115.7,12.6609072]
[1770678013847,1.00875746,2116.6,2115.7,12.6609072]
[1770678014035,1.18101375,2116.9,2115.7,12.6609072]
[1770678014241,1.00885493,2116.8,2115.7,12.6609072]
[1770678014421,1.18101375,2116.9,2115.7,12.6609072]
[1770678014422,1.00885493,2116.7,2115.7,12.6609072]
[1770678014730,1.18101375,2116.9,2115.7,12.6609072]
[1770678014934,1.00885113,2116.8,2115.9,12.6609072]
[1770678015131,1.18292296,2117.0,2115.9,12.6609072]
[1770678015337,1.00893479,2116.9,2115.9,12.6609072]
[1770678015537,0.002,2116.2,2115.9,12.6609072]
[1770678015836,0.002,2117.0,2115.9,12.6609072]
[1770678016033,0.002,2116.4,2115.9,12.6609072]
[1770678016212,0.002,2117.0,2116.0,12.6609072]
[1770678017030,0.002,2117.0,2116.2,12.6609072]
[1770678017231,0.002,2117.0,2116.3,15.9629072]
[1770678017530,0.002,2117.0,2116.4,12.6609072]
[1770678019540,0.002,2117.0,2116.5,13.99523638]
[1770678024448,0.002,2117.4,2116.9,11.73551117]
[1770678024739,1.18231009,2118.1,2117.1,11.73551117]
[1770678024939,13.14964957,2118.1,2117.1,11.73551117]
[1770678025316,13.14964957,2118.1,2117.0,3.301]
[1770678025738,13.14964957,2118.1,2117.0,15.03651117]
[1770678025941,0.002,2118.1,2117.1,11.73551117]
[1770678026441,0.002,2118.1,2117.3,11.73551117]
[1770678027744,6.50063056,2119.0,2117.3,11.73551117]
[1770678027745,1.17984977,2119.0,2117.8,11.73551117]
[1770678027925,13.14718925,2119.0,2117.9,15.03551117]
[1770678028128,13.14718925,2119.0,2117.9,3.3]
[1770678028330,13.14718925,2119.0,2118.0,1.18035882]
[1770678029239,13.14697426,2119.3,2118.1,11.73551117]
[1770678029442,13.14697426,2119.3,2118.0,1.18035882]
[1770678030221,13.14225004,2119.3,2118.0,1.18035882]
[1770678032044,13.14225004,2119.3,2118.0,12.91586999]
[1770678032934,13.14225004,2119.3,2118.0,1.18035882]
[1770678034248,13.14225004,2119.3,2118.0,12.91586999]
[1770678035449,11.96733948,2119.0,2117.9,3.3]
[1770678035631,11.96733948,2118.6,2117.4,1.18065383]
[1770678035826,11.96733948,2118.6,2117.2,1.18077149]
[1770678036141,0.05631688,2118.7,2117.1,8.02229769]
[1770678036142,11.96733948,2118.4,2117.1,4.4798192]
[1770678036533,1.18019166,2118.3,2117.1,4.4798192]
[1770678036733,11.96733948,2118.2,2117.1,4.4798192]
[1770678037554,11.96733948,2117.4,2116.6,0.001]
[1770678038240,11.96733948,2117.2,2116.6,0.001]
[1770678038637,13.14820009,2117.1,2116.6,0.001]
[1770678040142,13.14820009,2117.1,2116.4,0.001]
[1770678040958,13.14820009,2117.1,2116.8,0.001]
[1770678041254,13.14820009,2117.1,2116.4,0.001]
[1770678041460,13.14820009,2117.1,2116.5,0.001]
[1770678042258,11.96733948,2116.9,2115.7,12.91811178]
[1770678043062,13.14836744,2116.8,2115.7,12.91811178]
[1770678045076,13.14836744,2116.8,2115.7,0.001]
[1770678045445,13.14836744,2116.8,2115.7,1.18264132]
[1770678046354,13.14836744,2116.8,2115.9,0.7]
[1770678049046,13.14836744,2116.8,2115.7,1.18263559]
[1770678053575,13.14836744,2116.8,2115.9,0.001]
[1770678055353,13.14836744,2116.8,2115.7,0.001]
[1770678055775,12.59927496,2116.6,2115.7,0.001]
[1770678056178,12.59927496,2116.4,2115.7,0.001]
[1770678058172,1.18130699,2116.3,2115.7,0.001]
[1770678058381,13.78058195,2116.3,2115.7,0.001]
[1770678060480,13.78059331,2116.3,2115.7,0.001]
[1770678060687,12.59927496,2116.5,2115.7,0.001]
[1770678060886,1.18113956,2116.6,2115.7,12.10978187]
[1770678061053,17.0814024,2116.7,2115.7,12.10978187]
[1770678062279,17.0814024,2116.7,2115.8,13.29036803]
[1770678062475,17.08136427,2116.7,2115.8,13.29036803]
[1770678062976,13.78036427,2116.7,2115.8,13.29036803]
[1770678064381,2.18770363,2116.6,2115.8,13.29036803]
[1770678064582,1.18117685,2116.6,2115.8,13.29036803]
[1770678065272,1.00990227,2116.5,2115.8,13.29036803]
[1770678065464,1.00990227,2116.4,2115.8,13.29036803]
[1770678065665,1.18117685,2116.6,2115.8,13.29036803]
[1770678065981,1.00997467,2116.5,2115.8,13.29036803]
[1770678066281,1.00997467,2116.4,2115.9,12.10978187]
[1770678066459,1.00997467,2116.3,2115.9,13.29126179]
[1770678066669,2.43321365,2116.6,2115.9,13.29126179]
[1770678066984,1.01146174,2116.5,2115.9,13.29126179]
[1770678067175,2.26149854,2116.4,2115.9,13.29126179]
[1770678067491,1.01146174,2116.3,2115.9,13.29126179]
[1770678067785,1.01146174,2116.2,2115.9,13.29126179]
[1770678067975,1.01146174,2116.1,2115.9,13.29126179]
[1770678068169,1.2500368,2116.4,2115.9,13.29126179]
[1770678069182,1.2500368,2116.4,2115.9,12.10978187]
[1770678069385,2.4312905,2116.4,2115.9,12.10978187]
[1770678070678,2.4312905,2116.4,2115.9,0.001]
[1770678071269,1.2500368,2116.3,2115.9,0.001]
[1770678076892,1.2500368,2116.3,2115.9,12.10978187]
[1770678077789,1.2500368,2116.3,2115.9,13.29126949]